bitfinex/quotes_ETHUSD_20250529
["timestamp","ask_amount","ask_price","bid_price","bid_amount"]
[1748542001567,3.74967242,2666.9,2666.4,3.7502933]
[1748542001746,3.74982571,2666.8,2666.4,24.918311]
[1748542001951,8.77185196,2667.0,2666.4,3.75034599]
[1748542002134,10.02398115,2667.0,2666.5,3.75022866]
[1748542002453,6.09498115,2667.0,2666.5,3.75022276]
[1748542002788,6.27332919,2667.0,2666.5,3.75015157]
[1748542003083,6.09493675,2667.0,2666.5,10.0]
[1748542003358,6.27132919,2667.0,2666.4,1.103]
[1748542003676,4.80381438,2667.6,2666.4,1.103]
[1748542003677,1.1185,2667.2,2666.5,18.376511]
[1748542003880,3.74954413,2667.0,2666.6,16.057489]
[1748542004156,3.74939221,2667.1,2666.6,3.75008888]
[1748542004395,5.00369609,2667.1,2666.6,3.75008888]
[1748542004761,1.25430388,2667.1,2666.6,3.75008888]
[1748542004955,5.00371211,2667.1,2666.6,3.75008888]
[1748542005156,1.25430388,2667.1,2666.7,3.74990886]
[1748542005360,3.923,2667.2,2666.7,13.74988372]
[1748542005654,3.923,2667.2,2666.8,31.498287]
[1748542005855,3.7494151,2667.1,2666.6,13.338995]
[1748542006083,3.7494151,2667.1,2666.5,10.0345]
[1748542006084,3.69971612,2666.9,2666.5,10.0345]
[1748542006504,1.1397,2667.1,2666.1,4.92023419]
[1748542006694,3.74987648,2666.8,2666.3,22.991045]
[1748542006988,4.25587586,2667.0,2666.5,12.517647]
[1748542007188,3.74968921,2666.9,2666.6,10.0]
[1748542007367,3.74968921,2666.9,2666.5,10.0]
[1748542007568,3.74974389,2666.9,2666.5,10.343943]
[1748542007879,0.81790139,2666.8,2666.4,10.419341]
[1748542008051,4.56775445,2666.8,2666.5,10.063783]
[1748542008245,4.56775445,2666.8,2666.4,10.143191]
[1748542008952,4.56775445,2666.8,2666.2,2.880479]
[1748542008953,4.94304184,2666.6,2666.2,2.880479]
[1748542009197,0.49430418,2666.5,2666.2,12.737163]
[1748542009384,0.49430418,2666.5,2666.3,10.0]
[1748542009950,5.74460705,2666.8,2666.4,10.0]
[1748542010151,3.919,2666.7,2666.3,10.0]
[1748542010351,3.919,2666.7,2666.1,11.1695]
[1748542010553,7.6690554,2666.7,2666.2,13.821864]
[1748542010895,3.919,2666.7,2666.2,10.389479]
[1748542011070,4.51037014,2666.7,2666.2,3.75065393]
[1748542011268,3.75015615,2666.6,2666.2,15.009783]
[1748542011594,3.75040722,2666.4,2666.1,1.1695]
[1748542011799,4.51037014,2666.7,2666.1,1.1695]
[1748542011800,3.75031125,2666.5,2666.1,1.1695]
[1748542012312,4.51037014,2666.7,2666.2,2.02484]
[1748542012462,8.26038932,2666.7,2666.3,10.0]
[1748542012661,8.26038932,2666.7,2666.2,27.02947805]
[1748542012858,8.26038932,2666.7,2666.2,3.75065405]
[1748542013282,0.94371893,2666.6,2666.2,3.541754]
[1748542013496,4.69386765,2666.6,2666.2,3.522999]
[1748542013702,3.75024816,2666.5,2666.2,10.0]
[1748542014195,3.75039494,2666.4,2666.1,10.0]
[1748542014397,7.66549951,2666.4,2665.6,5.0324]
[1748542014593,4.6291654,2666.3,2665.8,10.0]
[1748542014792,3.75068006,2666.2,2665.9,10.0]
[1748542014998,4.62918632,2666.3,2665.8,23.944877]
[1748542015170,0.87859995,2666.3,2665.8,3.75121425]
[1748542015700,0.87859995,2666.3,2660.3,0.0031]
[1748542015701,1.0877,2666.2,2665.4,1.1719]
[1748542015995,1.0877,2666.2,2665.5,3.75161747]
[1748542015996,7.66586883,2666.1,2665.5,3.75161747]
[1748542016156,7.66586883,2666.1,2665.7,10.0]
[1748542016361,7.66586883,2666.1,2665.7,13.192227]
[1748542016794,3.915,2666.1,2665.7,13.192227]
[1748542017694,7.66584294,2666.1,2665.7,13.192227]
[1748542017897,3.915,2666.1,2665.7,13.192227]
[1748542018995,3.915,2666.1,2665.7,16.94352551]
[1748542019310,3.915,2666.1,2665.7,3.75129851]
[1748542020577,3.915,2666.1,2665.7,13.026111]
[1748542020900,3.911,2666.2,2665.9,3.75104833]
[1748542021068,4.8981102,2666.8,2666.1,5.3245]
[1748542021269,1.1482,2666.6,2665.8,3.229617]
[1748542021510,1.1482,2666.6,2665.8,12.049477]
[1748542021511,3.75040113,2666.4,2665.8,12.049477]
[1748542021669,3.75040113,2666.4,2665.5,3.751559]
[1748542021670,3.75105723,2666.0,2665.5,1.1884]
[1748542021870,3.75105723,2666.0,2665.6,14.462025]
[1748542021871,1.1482,2666.0,2665.6,14.462025]
[1748542022130,1.1482,2666.0,2665.1,3.75217181]
[1748542022131,3.75117099,2665.9,2665.3,8.85524059]
[1748542022407,1.63810158,2666.0,2665.5,16.54838818]
[1748542022701,5.38905251,2666.0,2665.5,22.661076]
[1748542022889,3.75125668,2665.8,2665.4,14.837869]
[1748542023063,3.7512024,2665.9,2665.6,10.0]
[1748542023268,1.63810158,2666.0,2665.0,1.042]
[1748542023269,3.75143516,2665.7,2665.0,4.85290334]
[1748542023511,4.4539304,2665.8,2665.3,3.75178551]
[1748542023663,8.20521521,2665.8,2665.3,23.226989]
[1748542023863,8.20521521,2665.8,2665.3,11.643426]
[1748542024069,4.4539304,2665.8,2665.4,2.971868]
[1748542024283,8.20515128,2665.8,2665.5,10.0]
[1748542024505,8.20515128,2665.8,2665.4,3.407163]
[1748542024802,8.20515128,2665.8,2665.5,10.0]
[1748542025005,4.4539304,2665.8,2665.5,10.0]
[1748542025168,8.20522989,2665.8,2665.4,14.083306]
[1748542025369,4.94706506,2665.7,2665.3,10.0]
[1748542026106,5.38910882,2666.0,2665.5,3.75157424]
[1748542026319,9.30310882,2666.0,2665.5,10.0]
[1748542026523,9.30310882,2666.0,2665.5,3.75163841]
[1748542027276,3.75108867,2665.9,2665.4,3.75172338]
[1748542028281,9.30508371,2666.0,2665.4,2.654451]
[1748542028482,9.30508371,2666.0,2665.3,13.75192084]
[1748542028483,3.75129629,2665.8,2665.3,13.75192084]
[1748542028683,4.30653622,2665.9,2665.4,6.20819011]
[1748542028907,4.30653622,2665.9,2665.4,3.75173911]
[1748542029618,0.35032064,2666.5,2665.4,3.75173911]
[1748542029619,0.35825827,2666.8,2665.6,51.88277223]
[1748542029817,1.1465,2666.4,2665.7,18.00736375]
[1748542030002,3.75051569,2666.3,2665.8,13.78653704]
[1748542030312,3.75051569,2666.3,2665.8,3.75114804]
[1748542030474,3.75068655,2666.2,2665.7,3.75129282]
[1748542030688,3.7508166,2666.1,2665.8,12.03102]
[1748542030888,3.75060945,2666.3,2665.7,13.7513398]
[1748542031088,3.75060945,2666.3,2665.9,24.938171]
[1748542031303,3.75060945,2666.3,2665.9,21.175748]
[1748542031527,4.89694185,2666.4,2665.9,14.60880776]
[1748542031730,4.89697712,2666.4,2665.8,9.36864323]
[1748542031932,4.89687568,2666.4,2665.7,3.75129775]
[1748542032130,3.75051569,2666.3,2665.7,13.454504]
[1748542032426,3.917,2666.3,2665.5,11.1179]
[1748542032591,1.2036,2666.2,2665.5,10.0]
[1748542032794,3.75126318,2665.8,2665.4,10.0]
[1748542033025,1.2036,2665.7,2665.4,10.0]
[1748542033257,1.2036,2665.7,2665.2,4.24337]
[1748542033458,1.2036,2665.7,2665.3,3.75188768]
[1748542035019,1.2036,2665.7,2665.2,13.75197212]
[1748542035219,4.95503996,2665.7,2665.2,7.51178351]
[1748542035535,4.95503996,2665.7,2665.3,10.0]
[1748542035740,1.2036,2665.7,2665.3,13.75192243]
[1748542035946,1.2036,2665.7,2665.3,3.75192243]
[1748542036257,1.2036,2665.7,2665.3,10.0]
[1748542036459,1.2036,2665.7,2665.2,12.856522]
[1748542036659,1.2036,2665.7,2665.1,3.919]
[1748542036660,1.2036,2665.7,2665.4,12.341563]
[1748542036980,1.2036,2665.7,2665.4,2.537594]
[1748542037382,5.61308868,2665.7,2664.9,31.449553]
[1748542037606,3.75160875,2665.6,2665.0,12.92692588]
[1748542037729,8.86898057,2665.7,2665.2,3.75204855]
[1748542038152,4.95498057,2665.7,2665.3,6.051302]
[1748542038367,4.95498057,2665.7,2665.3,2.4738]
[1748542038529,4.95498057,2665.7,2665.2,3.75204855]
[1748542039166,4.95504103,2665.7,2665.3,10.0]
[1748542039371,4.95504103,2665.7,2665.2,3.75204855]
[1748542039733,1.2036,2665.7,2665.3,10.0]
[1748542040030,3.75174066,2665.5,2665.1,10.0]
[1748542040240,1.2036,2665.7,2665.1,10.0]
[1748542040440,1.2036,2665.7,2665.3,13.7518332]
[1748542040643,0.88109771,2666.4,2665.5,3.75154776]
[1748542040856,1.1832,2666.5,2665.9,3.7510062]
[1748542041068,1.1832,2666.5,2666.2,3.75058448]
[1748542041271,1.1832,2666.5,2666.2,20.312632]
[1748542041481,1.1832,2666.5,2666.2,22.08744917]
[1748542041688,11.74873669,2667.6,2666.3,20.847241]
[1748542041689,1.1872,2666.8,2666.3,20.847241]
[1748542041849,1.1872,2666.8,2666.4,15.88251]
[1748542042048,1.1872,2666.8,2666.5,10.0]
[1748542042363,1.1872,2666.8,2666.4,14.4167]
[1748542042563,4.93710176,2666.8,2666.4,14.4167]
[1748542042762,4.93710176,2666.8,2666.3,10.0197]
[1748542042934,3.75004829,2666.7,2665.9,1.2135]
[1748542043138,2.05586755,2666.8,2665.9,1.2135]
[1748542043139,5.80568153,2666.8,2666.2,37.95089833]
[1748542043338,5.80568153,2666.8,2666.3,23.50352284]
[1748542043673,5.80575135,2666.8,2666.4,18.032721]
[1748542043876,5.80575135,2666.8,2666.5,10.0]
[1748542044049,2.05586755,2666.8,2666.4,24.021389]
[1748542044256,2.05586755,2666.8,2666.5,15.660399]
[1748542044455,1.1872,2666.8,2666.5,13.684689]
[1748542044665,1.1872,2666.8,2666.4,11.764877]
[1748542044845,1.1872,2666.8,2666.4,15.51524992]
[1748542045036,1.1872,2666.8,2666.4,11.764877]
[1748542045243,4.93702618,2666.8,2666.4,10.053177]
[1748542045541,4.93702618,2666.8,2666.2,3.75064445]
[1748542045542,1.68090262,2666.8,2666.3,3.167511]
[1748542045797,4.93709616,2666.8,2666.3,9.09358581]
[1748542045983,1.1872,2666.8,2666.4,20.292502]
[1748542046141,1.1872,2666.8,2666.1,24.172834]
[1748542046342,4.93703062,2666.8,2666.3,15.445636]
[1748542046573,3.74995453,2666.7,2666.2,13.7505535]
[1748542046782,0.51776065,2666.7,2666.3,11.6087]
[1748542046965,4.93710518,2666.8,2666.3,11.6087]
[1748542047286,3.75004886,2666.7,2666.2,23.092546]
[1748542047477,3.75004886,2666.7,2666.2,3.75064641]
[1748542047682,3.75004886,2666.7,2666.3,3.628985]
[1748542047881,4.93708174,2666.8,2666.4,10.0]
[1748542048191,1.2354,2666.6,2665.7,3.06943548]
[1748542048357,1.2354,2666.6,2665.7,1.2074]
[1748542048358,3.75023438,2666.5,2665.7,1.2074]
[1748542048559,1.2354,2666.1,2665.6,13.75149172]
[1748542048787,1.2354,2666.1,2665.7,10.0]
[1748542048788,4.98626476,2666.1,2665.7,10.0]
[1748542049087,1.2354,2666.1,2665.7,8.62840891]
[1748542049268,1.2354,2666.1,2665.8,3.75116718]
[1748542049691,1.2354,2666.3,2666.0,3.75085743]
[1748542049893,1.2354,2666.3,2665.9,13.75101426]
[1748542050085,1.2354,2666.3,2665.9,23.946325]
[1748542050289,1.2354,2666.3,2665.8,3.75108872]
[1748542050603,1.2354,2666.3,2665.8,4.29857]
[1748542050788,3.75081383,2666.1,2665.6,13.75143508]
[1748542050974,0.87368168,2666.1,2665.5,3.75156148]
[1748542051174,0.87368168,2666.1,2665.6,3.75143286]
[1748542051375,3.7507221,2666.2,2665.7,3.75135675]
[1748542051576,1.2354,2666.3,2665.8,3.7512084]
[1748542051901,4.98593413,2666.3,2665.8,3.7511702]
[1748542052099,4.98593413,2666.3,2665.8,3.9297]
[1748542052100,3.75066709,2666.2,2665.8,3.9297]
[1748542052276,3.75066709,2666.2,2665.9,10.0]
[1748542052475,1.25987915,2666.8,2665.4,6.1634]
[1748542052476,2.42087915,2666.8,2665.8,41.965927]
[1748542052682,2.42087915,2666.8,2666.1,15.346222]
[1748542052683,3.74995312,2666.7,2666.1,15.346222]
[1748542052874,3.75009375,2666.6,2666.1,11.6697]
[1748542053278,3.75009375,2666.6,2665.6,7.49629721]
[1748542053279,1.161,2666.1,2665.7,3.7512784]
[1748542053809,1.161,2666.1,2665.8,10.0]
[1748542053993,1.161,2666.1,2665.7,3.7512784]
[1748542054568,1.161,2666.1,2665.8,10.0]
[1748542054797,1.161,2666.1,2665.9,2.702655]
[1748542055002,1.161,2666.1,2665.7,10.0]
[1748542055208,4.9118087,2666.1,2665.7,10.0]
[1748542055505,4.91179978,2666.1,2665.6,3.92]
[1748542055709,4.91179978,2666.1,2665.6,3.75149496]
[1748542055913,1.161,2666.1,2665.6,9.19422426]
[1748542056068,1.161,2666.1,2665.8,3.75117996]
[1748542056507,3.75053486,2666.3,2665.8,23.22828342]
[1748542056508,1.2391,2666.3,2665.8,23.22828342]
[1748542056704,4.98963231,2666.3,2665.9,18.065951]
[1748542057208,4.98963231,2666.3,2665.9,3.75107371]
[1748542057209,1.2391,2666.3,2665.9,3.75107371]
[1748542058162,4.98961765,2666.3,2665.9,10.1768]
[1748542058717,4.98961765,2666.3,2665.5,5.78502578]
[1748542058718,1.2391,2666.1,2665.4,10.0]
[1748542058865,1.227,2665.7,2665.3,16.024199]
[1748542059068,1.227,2665.7,2665.4,10.0]
[1748542059304,1.227,2665.7,2665.3,23.034199]
[1748542059508,1.227,2665.7,2665.3,3.75181255]
[1748542059717,1.227,2665.7,2665.4,3.75177133]
[1748542060006,3.75063309,2666.3,2665.4,3.75177133]
[1748542060007,4.9864409,2666.4,2665.7,11.2381]
[1748542060211,4.9864409,2666.4,2665.9,10.0]
[1748542060407,1.236,2666.4,2665.9,13.75106885]
[1748542060711,4.98641645,2666.4,2665.8,29.610609]
[1748542061004,4.98641645,2666.4,2665.9,13.359122]
[1748542061316,3.74995784,2666.7,2666.1,3.75071474]
[1748542061482,1.236,2667.1,2665.8,10.0]
[1748542061483,1.236,2666.5,2666.2,10.0]
[1748542061688,1.236,2666.5,2666.1,10.0]
[1748542061689,3.75043673,2666.4,2666.1,10.0]
[1748542061885,3.75043673,2666.4,2666.0,10.0]
[1748542062528,3.75067313,2666.2,2665.8,13.452155]
[1748542062704,3.75049555,2666.4,2665.9,10.0]
[1748542062905,3.75049555,2666.4,2665.8,18.12437127]
[1748542062906,3.75049555,2666.4,2666.0,10.0]
[1748542063104,3.75049555,2666.4,2665.8,10.0]
[1748542063105,1.253,2666.2,2665.8,10.0]
[1748542063406,5.00370414,2666.2,2665.8,10.0]
[1748542063782,1.253,2666.2,2665.9,10.0]
[1748542063986,1.253,2666.2,2665.8,3.75121185]
[1748542064181,1.253,2666.2,2665.8,10.0]
[1748542064383,5.00373595,2666.2,2665.8,10.0]
[1748542064871,1.253,2666.2,2665.7,13.75129866]
[1748542065072,1.253,2666.2,2665.8,10.0]
[1748542065576,1.253,2666.2,2665.6,7.66943563]
[1748542065577,5.00372712,2666.2,2665.7,2.930585]
[1748542065772,5.00372712,2666.2,2665.8,10.0]
[1748542066002,5.00372712,2666.2,2665.7,11.340585]
[1748542066199,1.253,2666.2,2665.7,15.09182047]
[1748542066509,5.0036599,2666.2,2665.8,10.0]
[1748542066811,5.0036599,2666.2,2665.8,3.75121387]
[1748542066812,1.253,2666.2,2665.8,3.75121387]
[1748542067110,1.253,2666.2,2665.8,10.0]
[1748542067406,1.253,2666.2,2665.7,3.75125631]
[1748542067977,1.253,2666.2,2665.7,14.910938]
[1748542068174,3.75101204,2666.0,2665.6,10.0]
[1748542068513,3.75085756,2666.1,2665.6,10.0]
[1748542068884,3.75097309,2666.0,2665.5,4.169057]
[1748542069088,3.75085317,2666.1,2665.6,10.0]
[1748542069290,1.2415,2665.9,2665.4,10.0]
[1748542069489,1.2415,2665.9,2665.5,13.75150197]
[1748542069686,1.2415,2666.1,2665.7,17.24285173]
[1748542069872,1.2415,2666.1,2665.7,3.75131873]
[1748542070383,1.2415,2666.1,2665.7,17.555072]
[1748542070584,1.2415,2666.1,2665.8,10.0]
[1748542070782,1.2415,2666.1,2665.7,3.75132958]
[1748542071009,1.2415,2666.1,2665.8,10.0]
[1748542071185,1.2415,2666.1,2665.6,13.04887223]
[1748542071385,4.9923662,2666.1,2665.7,9.996736]
[1748542071697,1.2415,2666.1,2665.7,10.0]
[1748542071901,1.2469,2666.3,2665.6,1.88277223]
[1748542072107,1.2469,2666.3,2665.7,20.34072]
[1748542072108,4.9974179,2666.3,2665.7,20.34072]
[1748542072312,1.2469,2666.3,2666.0,1.88277223]
[1748542072488,7.99514932,2667.1,2666.2,3.7505189]
[1748542072489,1.1552,2666.6,2666.2,3.7505189]
[1748542072688,1.1552,2666.6,2666.0,1.83277223]
[1748542073020,1.1552,2666.6,2666.2,3.4597]
[1748542073021,4.90531315,2666.6,2666.2,3.4597]
[1748542073219,4.90531315,2666.6,2666.3,10.0]
[1748542073421,4.90531903,2666.6,2666.2,13.4697]
[1748542073584,4.90531903,2666.6,2666.3,10.0]
[1748542073785,4.90531903,2666.6,2666.2,10.0]
[1748542074017,3.7504522,2666.4,2665.9,1.043]
[1748542074213,3.75031237,2666.5,2665.9,4.79406645]
[1748542074411,3.75031237,2666.5,2666.0,14.721391]
[1748542074615,3.75031237,2666.5,2666.0,13.810391]
[1748542074796,3.75031237,2666.5,2666.0,12.372441]
[1748542074997,4.90537359,2666.6,2666.1,10.0]
[1748542075799,3.75026757,2666.5,2666.0,3.75088882]
[1748542078432,1.166,2666.8,2666.6,3.75008396]
[1748542078631,3.74943523,2667.1,2666.6,28.39398811]
[1748542078929,1.166,2667.0,2666.6,10.0]
[1748542079228,1.166,2667.0,2666.4,3.907]
[1748542079229,1.2582,2666.9,2666.4,10.913495]
[1748542079404,1.2582,2666.9,2665.7,11.1696]
[1748542079405,5.00792705,2666.9,2666.3,3.75044235]
[1748542079606,5.00792705,2666.9,2666.4,10.0]
[1748542079807,4.93393422,2666.8,2666.1,3.75075451]
[1748542079997,4.93393422,2666.8,2666.2,25.981073]
[1748542080196,1.1841,2666.8,2666.3,3.75045479]
[1748542080398,4.93393615,2666.8,2666.3,3.75047847]
[1748542080598,1.1841,2666.8,2666.5,9.994666]
[1748542080898,1.1841,2666.8,2666.5,23.018976]
[1748542081097,1.1841,2666.8,2666.4,12.84328]
[1748542081293,1.1841,2666.8,2666.5,3.93228]
[1748542081498,1.1841,2666.8,2666.3,10.0]
[1748542081499,4.61822973,2666.8,2666.4,10.0]
[1748542081741,1.2122,2666.3,2666.0,12.65588]
[1748542082035,1.2122,2666.3,2666.0,10.0]
[1748542082334,1.2122,2666.3,2666.0,11.2797]
[1748542082539,1.2122,2666.3,2666.0,10.0287]
[1748542083221,1.2122,2666.3,2666.0,1.80001701]
[1748542083425,1.2122,2666.3,2666.0,10.136207]
[1748542083636,1.2122,2666.3,2666.2,3.75065636]
[1748542083811,7.65295443,2666.7,2666.2,19.25783536]
[1748542083995,2.0797301,2666.6,2666.1,3.75072268]
[1748542084201,2.0797301,2666.6,2666.2,2.5297]
[1748542084537,5.82982444,2666.6,2666.1,5.50369]
[1748542084708,5.82982444,2666.6,2666.1,10.0]
[1748542084896,5.82982444,2666.6,2666.1,4.67575]
[1748542085102,5.82982444,2666.6,2666.2,10.0]
[1748542085497,5.82982444,2666.6,2666.1,3.75078539]
[1748542085732,3.75026258,2666.5,2666.1,7.517398]
[1748542086033,2.0797301,2666.6,2666.2,10.0]
[1748542086238,5.82983976,2666.6,2665.9,10.0]
[1748542086395,4.97770966,2666.6,2666.0,32.95135091]
[1748542086600,4.97770966,2666.6,2666.2,10.0]
[1748542086825,4.97770966,2666.6,2666.1,14.492467]
[1748542087131,4.97770966,2666.6,2666.2,10.0]
[1748542087436,5.28225224,2670.1,2666.2,10.0]
[1748542087437,4.99496075,2667.3,2666.7,3.74988382]
[1748542087638,3.74927676,2667.2,2666.9,10.0]
[1748542087936,5.1468,2667.3,2666.7,25.33240233]
[1748542087937,8.89597726,2667.3,2666.7,25.33240233]
[1748542088237,8.89597726,2667.3,2666.9,10.0]
[1748542088238,3.74925202,2667.2,2666.9,10.0]
[1748542088563,0.35867203,2667.5,2667.1,1.88277223]
[1748542088857,0.35867203,2667.5,2667.4,2.534614]
[1748542089013,0.35867203,2667.5,2667.2,10.0]
[1748542089219,0.35867203,2667.5,2667.1,1.88277223]
[1748542089220,0.35867203,2667.5,2667.1,2.110044]
[1748542089527,0.35867203,2667.5,2667.2,10.0]
[1748542089722,0.35867203,2667.5,2667.2,8.749302]
[1748542089938,0.35867203,2667.5,2667.3,10.0]
[1748542090235,0.35867203,2667.5,2667.1,14.684962]
[1748542090438,0.35867203,2667.5,2667.2,5.955222]
[1748542090598,0.35867203,2667.5,2666.7,6.89393201]
[1748542090599,3.74941767,2667.1,2666.7,1.86831198]
[1748542090795,0.52595521,2667.4,2666.7,1.86831198]
[1748542090796,1.2434,2667.0,2666.7,1.86831198]
[1748542091012,3.7496725,2666.9,2666.6,1.86831198]
[1748542091210,1.2434,2667.0,2666.5,6.343482]
[1748542091436,4.99294628,2667.0,2666.5,14.932904]
[1748542091637,0.87423528,2666.9,2666.4,14.778883]
[1748542091836,0.87423528,2666.9,2666.4,18.52924955]
[1748542092005,0.87423528,2666.9,2666.6,10.0]
[1748542092206,0.87423528,2666.9,2666.6,13.41128]
[1748542092502,0.87423528,2666.9,2666.4,10.079335]
[1748542092731,0.21176353,2666.8,2666.4,14.195087]
[1748542092902,0.87423528,2666.9,2666.4,3.75037495]
[1748542093102,0.87423528,2666.9,2666.5,10.0]
[1748542093351,0.87423528,2666.9,2666.5,13.75023393]
[1748542093531,1.2434,2667.0,2666.3,5.78977223]
[1748542093532,1.2434,2667.0,2666.8,14.150973]
[1748542093844,1.2434,2667.0,2666.8,4.150973]
[1748542094004,1.2346,2667.2,2667.0,10.0]
[1748542094204,1.73405521,2667.4,2667.1,14.976197]
[1748542094417,1.73405521,2667.4,2667.2,10.0]
[1748542094418,1.2081,2667.4,2667.2,10.0]
[1748542094629,1.2081,2667.4,2666.9,26.853915]
[1748542094630,4.95707326,2667.4,2666.9,26.853915]
[1748542094827,4.95707326,2667.4,2666.9,14.018223]
[1748542095315,3.7491801,2667.3,2666.7,5.63271382]
[1748542095499,3.7491801,2667.3,2666.9,10.0]
[1748542095703,1.2081,2667.4,2666.9,20.413285]
[1748542095902,4.95711769,2667.4,2667.0,17.411352]
[1748542096124,4.95711769,2667.4,2666.9,19.112071]
[1748542096328,1.2081,2667.4,2667.1,10.0]
[1748542096529,0.35867203,2667.5,2667.1,10.0]
[1748542096530,0.35867203,2667.5,2667.3,10.0]
[1748542096733,0.35867203,2667.5,2667.3,2.875864]
[1748542096916,0.35867203,2667.5,2667.0,2.0188]
[1748542097099,0.35867203,2667.5,2667.1,16.454928]
[1748542097333,0.35867203,2667.5,2667.3,10.0]
[1748542097531,0.35867203,2667.5,2667.3,22.602185]
[1748542097736,0.35867203,2667.5,2667.3,13.0]
[1748542097942,0.35867203,2667.5,2667.3,12.539502]
[1748542098142,0.35867203,2667.5,2667.3,4.243262]
[1748542098641,0.35867203,2667.5,2667.4,10.0]
[1748542098858,0.35867203,2667.5,2667.3,10.0]
[1748542099027,1.2255,2667.4,2667.0,3.892384]
[1748542099352,1.2255,2667.4,2667.1,10.0]
[1748542099657,4.10756802,2667.5,2667.3,33.11660123]
[1748542099658,0.35867203,2667.5,2667.3,33.11660123]
[1748542099808,0.35867203,2667.5,2667.3,1.88277223]
[1748542100160,0.35867203,2667.5,2667.4,10.0]
[1748542100362,0.35867203,2667.5,2667.3,11.88277223]
[1748542100837,0.35867203,2667.5,2667.2,3.74922902]
[1748542100838,3.74911262,2667.3,2667.0,1.88277223]
[1748542101012,1.9949024,2667.5,2666.6,22.443111]
[1748542101211,1.9949024,2667.5,2666.9,11.87817019]
[1748542101418,1.9949024,2667.5,2666.7,13.74986881]
[1748542101419,5.74380472,2667.5,2667.0,17.30229434]
[1748542101719,5.74380472,2667.5,2667.0,12.310465]
[1748542101926,0.94925128,2667.4,2667.0,12.310465]
[1748542102153,0.94925128,2667.4,2667.1,12.281665]
[1748542102358,5.74381264,2667.5,2667.0,12.310465]
[1748542102519,5.74381264,2667.5,2667.0,11.773265]
[1748542102721,3.7490455,2667.4,2667.0,4.145751]
[1748542102927,3.7490455,2667.4,2667.0,13.785751]
[1748542103447,5.74374681,2667.5,2667.0,13.785751]
[1748542103634,0.35867203,2667.5,2667.4,30.100659]
[1748542103959,0.35867203,2667.5,2667.4,15.332665]
[1748542104260,0.35867203,2667.5,2667.4,13.648265]
[1748542104459,0.35867203,2667.5,2667.4,4.480971]
[1748542104847,4.10758445,2667.5,2667.0,13.399295]
[1748542105142,4.10758445,2667.5,2667.1,3.74932542]
[1748542105143,0.35867203,2667.5,2667.1,3.74932542]
[1748542105321,0.35867203,2667.5,2667.2,10.0]
[1748542105774,1.2148,2667.4,2667.2,10.0]
[1748542106068,4.10760644,2667.5,2666.4,1.86200302]
[1748542106069,1.2148,2667.0,2666.4,1.86200302]
[1748542106225,1.2148,2667.0,2666.1,1.2265]
[1748542106226,1.2148,2667.0,2666.1,4.97728619]
[1748542106227,8.86138769,2667.0,2666.1,4.97728619]
[1748542106562,1.2148,2666.8,2666.4,3.75036957]
[1748542106859,1.2148,2666.8,2666.3,27.338427]
[1748542107066,1.2148,2666.8,2666.4,16.334711]
[1748542107260,1.2148,2666.8,2666.4,3.75037375]
[1748542107424,1.2148,2666.8,2666.4,30.71103702]
[1748542107771,3.897,2667.0,2666.6,3.75009014]
[1748542107772,1.2148,2667.0,2666.6,3.75009014]
[1748542107926,1.2148,2667.0,2666.7,3.74994646]
[1748542107927,2.10212935,2667.0,2666.7,3.74994646]
[1748542108123,1.2148,2667.0,2666.8,10.0]
[1748542108424,1.2148,2667.0,2666.6,28.92461515]
[1748542108532,1.2148,2667.0,2666.7,13.44873]
[1748542108737,3.74974104,2666.9,2666.4,5.63305135]
[1748542108969,4.96440863,2667.0,2666.5,20.9435]
[1748542109273,5.92008143,2667.0,2666.5,10.0]
[1748542109477,3.74973944,2666.9,2666.5,10.0]
[1748542109722,3.74973944,2666.9,2666.4,5.63313134]
[1748542109833,3.74973944,2666.9,2666.1,7.62637825]
[1748542109834,4.90856288,2666.8,2666.1,7.62637825]
[1748542110031,3.909,2666.9,2665.7,5.61334398]
[1748542110032,3.75043045,2666.4,2665.7,5.61334398]
[1748542110288,3.75072662,2666.2,2665.8,10.0]
[1748542110464,1.1587,2666.5,2665.8,10.0]
[1748542110465,3.75058306,2666.3,2665.9,10.0]
[1748542110630,3.75058306,2666.3,2666.0,10.0]
[1748542110835,3.75058306,2666.3,2665.9,3.872725]
[1748542111063,3.75054306,2666.3,2665.8,26.85107306]
[1748542111381,8.82097168,2666.5,2665.8,10.0]
[1748542111562,8.82097168,2666.5,2665.7,3.75127662]
[1748542111563,2.04079717,2666.5,2665.9,16.32643]
[1748542111745,5.0697,2666.5,2666.1,31.2018446]
[1748542111932,1.1587,2666.5,2665.8,10.0]
[1748542112136,1.1587,2666.5,2665.6,7.06977223]
[1748542112137,3.74759744,2668.4,2665.6,7.06977223]
[1748542112138,0.35867203,2667.5,2666.6,1.1637]
[1748542112380,0.35867203,2667.5,2667.2,1.88277223]
[1748542112548,0.35867203,2667.5,2667.3,21.170871]
[1748542112750,0.35867203,2667.5,2667.4,4.069824]
[1748542112933,0.35867203,2667.5,2667.4,10.0]
[1748542113134,0.35867203,2667.5,2667.4,28.01182003]
[1748542113384,0.35867203,2667.5,2667.4,22.20111603]
[1748542113882,0.35867203,2667.5,2667.4,5.076437]
[1748542114087,0.35867203,2667.5,2667.4,3.959446]
[1748542114235,0.35867203,2667.5,2666.8,3.74968571]
[1748542114236,0.35867203,2667.5,2667.0,7.735207]
[1748542114436,0.35867203,2667.5,2667.4,13.74896903]
[1748542114634,0.35867203,2667.5,2667.4,3.74896903]
[1748542114854,0.35867203,2667.5,2667.4,10.0]
[1748542115188,0.35867203,2667.5,2667.3,10.0]
[1748542115396,4.10566304,2668.4,2668.1,3.74798545]
[1748542115397,0.35803721,2668.4,2668.1,3.74798545]
[1748542116071,0.35803721,2668.4,2668.1,10.0]
[1748542116388,0.35803721,2668.4,2668.1,3.74790843]
[1748542116678,0.35803721,2668.4,2667.7,10.0]
[1748542116679,0.35803721,2668.4,2668.0,3.74806143]
[1748542116839,0.35803721,2668.4,2668.2,10.0]